[Event "FIDE World Cup O10-TB 2024"]
[Site "Batumi"]
[Date "2024.07.01"]
[Round "1.1"]
[White "Bolashakov, Nurali"]
[Black "Ling, Chenxuan"]
[Result "1/2-1/2"]
[ECO "B33"]
[WhiteElo "1843"]
[BlackElo "1868"]
[Annotator "NA RC"]
[PlyCount "58"]
[EventDate "2024.06.23"]
[EventType "swiss"]
[EventCountry "GEO"]
[SourceTitle "playchess.com"]
[Source "ChessBase"]
[SourceQuality "1"]
[TimeControl "5400+30"]

1. e4 {[%emt 0:00:07]} c5 {[%emt 0:00:02]} 2. Nf3 {[%emt 0:00:17]} Nc6 {[%emt 0:00:07]} 3. d4 {[%emt 0:00:13]} cxd4 {[%emt 0:00:07]} 4. Nxd4 {[%emt 0:00:04]} Nf6 {[%emt 0:00:05]} 5. Nc3 {[%emt 0:00:06]} e5 {[%emt 0:00:05]} 6. Ndb5 {[%emt 0:00:36]} d6 {[%emt 0:00:12]} 7. Nd5 {[%emt 0:00:32]} Nxd5 {[%emt 0:00:04]} 8. exd5 {[%emt 0:00:14]} Nb8 {[%emt 0:00:03]} 9. a4 {[%emt 0:00:24]} Be7 {[%emt 0:00:08]} 10. Be2 {[%emt 0:00:45]} O-O {[%emt 0:00:48]} 11. O-O {[%emt 0:01:40]} Bf5 {[%emt 0:01:32]} 12. f4 {[%emt 0:09:27]} exf4 {[%emt 0:03:19]} 13. Bxf4 {[%emt 0:09:32]} Bg6 {[%emt 0:02:33]} 14. Kh1 {[%emt 0:01:15]} a6 {[%emt 0:00:28]} 15. Na3 {[%emt 0:00:59]} Nd7 {[%emt 0:04:34]} 16. Nc4 {[%emt 0:00:48]} Nf6 {[%emt 0:00:07]} 17. a5 {[%emt 0:05:53]} Rc8 {[%emt 0:01:14]} 18. c3 {[%emt 0:01:41]} Rc5 {[%emt 0:17:00]} 19. Nb6 {[%emt 0:01:09]} Rxa5 {[%emt 0:01:10]} 20. Rxa5 {[%emt 0:00:06]} Qxb6 {[%emt 0:00:04]} 21. Qa1 {[%emt 0:29:47]} Ne4 {[%emt 0:03:54]} 22. h3 {[%emt 0:00:45]} Bg5 {[%emt 0:05:18]} 23. Bxg5 {[%emt 0:00:15]} Nxg5 {[%emt 0:00:03]} 24. Ra4 {[%emt 0:10:34]} Ne4 {[%emt 0:01:14]} 25. Rf3 {[%emt 0:06:44]} Nd2 {[%emt 0:58:49]} 26. Rff4 {[%emt 0:19:37]} Qe3 27. Qe1 {[%emt 0:00:30]} Re8 {[%emt 0:01:00]} 28. Rf2 {[%emt 0:00:30]} Rf8 {[%emt 0:00:30]} 29. Rff4 {[%emt 0:00:00]} Qb6 1/2-1/2

[Event "FIDE World Cup O10-TB 2024"]
[Site "Batumi"]
[Date "2024.07.01"]
[Round "1.2"]
[White "Zabelin, Platon"]
[Black "Chakrabarty, Reyaansh"]
[Result "0-1"]
[ECO "E06"]
[WhiteElo "1799"]
[BlackElo "2185"]
[Annotator "NA RC"]
[PlyCount "60"]
[EventDate "2024.06.23"]
[EventType "swiss"]
[EventCountry "GEO"]
[SourceTitle "playchess.com"]
[Source "ChessBase"]
[SourceQuality "1"]
[TimeControl "5400+30"]

1. d4 {[%emt 0:00:22]} d5 {[%emt 0:00:04]} 2. c4 {[%emt 0:00:07]} e6 {[%emt 0:00:03]} 3. Nf3 {[%emt 0:00:05]} Nf6 {[%emt 0:00:04]} 4. g3 {[%emt 0:00:04]} Be7 {[%emt 0:00:06]} 5. Bg2 {[%emt 0:00:06]} O-O {[%emt 0:00:05]} 6. O-O {[%emt 0:00:05]} c6 {[%emt 0:00:05]} 7. Qc2 {[%emt 0:00:06]} b6 {[%emt 0:02:33]} 8. Nbd2 {[%emt 0:00:07]} Bb7 {[%emt 0:01:33]} 9. e4 {[%emt 0:00:13]} Na6 {[%emt 0:00:04]} 10. e5 {[%emt 0:10:23]} Nd7 {[%emt 0:05:58]} 11. cxd5 {[%emt 0:01:29]} Nb4 {[%emt 0:04:25]} 12. Qb3 {[%emt 0:00:30]} cxd5 {[%emt 0:09:42]} 13. a3 {[%emt 0:01:11]} Nc6 {[%emt 0:00:01]} 14. Re1 {[%emt 0:03:16]} Rc8 {[%emt 0:20:30]} 15. Bf1 {[%emt 0:02:00]} f6 {[%emt 0:12:37]} 16. exf6 {[%emt 0:12:02]} Bxf6 {[%emt 0:00:14]} 17. Bh3 {[%emt 0:01:36]} Nxd4 {[%emt 0:02:48]} 18. Nxd4 {[%emt 0:00:13]} Bxd4 {[%emt 0:00:00]} 19. Bxe6+ {[%emt 0:00:16]} Kh8 {[%emt 0:39:08]} 20. Nf3 {[%emt 0:01:46]} Nc5 {[%emt 0:00:30]} 21. Qd1 {[%emt 0:00:08]} Nxe6 {[%emt 0:00:30]} 22. Rxe6 {[%emt 1:05:25]} Bf6 {[%emt 0:00:00]} 23. Rb1 {[%emt 0:00:00]} d4 {[%emt 0:00:00]} 24. Nd2 {[%emt 0:00:00]} Qd5 {[%emt 0:00:00]} 25. Re4 {[%emt 0:00:00]} Bg5 {[%emt 0:00:00]} 26. f3 {[%emt 0:00:00]} Be3+ {[%emt 0:00:00]} 27. Kg2 {[%emt 0:00:00]} Qa2 {[%emt 0:03:00]} 28. Re7 {[%emt 0:00:00]} Bxd2 {[%emt 0:00:00]} 29. Qxd2 {[%emt 0:00:00]} Bxf3+ {[%emt 0:00:00]} 30. Kh3 {[%emt 0:00:00]} Qxb1 {[%emt 0:00:00]} 0-1

[Event "FIDE World Cup O10-TB 2024"]
[Site "Batumi"]
[Date "2024.07.01"]
[Round "1.3"]
[White "Shangin, Lev"]
[Black "Yu, Zechen"]
[Result "1/2-1/2"]
[ECO "D63"]
[WhiteElo "2031"]
[BlackElo "1889"]
[Annotator "NA RC"]
[PlyCount "48"]
[EventDate "2024.06.23"]
[EventType "swiss"]
[EventCountry "GEO"]
[SourceTitle "playchess.com"]
[Source "ChessBase"]
[SourceQuality "1"]
[TimeControl "5400+30"]

1. d4 {[%emt 0:00:12]} Nf6 {[%emt 0:00:09]} 2. c4 {[%emt 0:00:16]} e6 {[%emt 0:00:13]} 3. Nf3 {[%emt 0:00:21]} d5 {[%emt 0:00:12]} 4. Nc3 {[%emt 0:00:41]} Nbd7 {[%emt 0:00:29]} 5. Bg5 {[%emt 0:02:09]} h6 {[%emt 0:00:37]} 6. Bh4 {[%emt 0:00:12]} Be7 {[%emt 0:01:07]} 7. e3 {[%emt 0:00:50]} O-O {[%emt 0:03:00]} 8. Rc1 {[%emt 0:01:14]} dxc4 {[%emt 0:02:26]} 9. Bxc4 {[%emt 0:00:13]} c5 {[%emt 0:00:17]} 10. O-O {[%emt 0:01:35]} a6 {[%emt 0:03:16]} 11. a4 {[%emt 0:07:07]} cxd4 {[%emt 0:17:49]} 12. Nxd4 {[%emt 0:01:14]} Ne5 {[%emt 0:04:22]} 13. Ba2 {[%emt 0:03:14]} Bd7 {[%emt 0:04:22]} 14. Bg3 {[%emt 0:03:27]} Nc6 {[%emt 0:00:13]} 15. Bb1 {[%emt 0:11:24]} Rc8 {[%emt 0:04:50]} 16. Re1 {[%emt 0:05:01]} Qb6 {[%emt 0:03:07]} 17. Nxc6 {[%emt 0:03:29]} Bxc6 {[%emt 0:00:41]} 18. Be5 {[%emt 0:03:27]} Rfd8 {[%emt 0:03:23]} 19. Qc2 {[%emt 0:05:52]} Be4 {[%emt 0:06:33]} 20. Qe2 {[%emt 0:00:19]} Bxb1 {[%emt 0:00:56]} 21. Rxb1 {[%emt 0:00:07]} Nd5 {[%emt 0:01:07]} 22. Qg4 {[%emt 0:04:15]} Nf6 {[%emt 0:03:15]} 23. Qe2 {[%emt 0:02:45]} Nd5 {[%emt 0:02:00]} 24. Qg4 {[%emt 0:05:06]} Nf6 {[%emt 0:00:14]} 1/2-1/2

[Event "FIDE World Cup O10-TB 2024"]
[Site "Batumi"]
[Date "2024.07.01"]
[Round "1.4"]
[White "Zhauynbay, Alimzhan"]
[Black "Vyom Malhotra"]
[Result "0-1"]
[ECO "C45"]
[WhiteElo "1903"]
[BlackElo "1803"]
[Annotator "NA RC"]
[PlyCount "100"]
[EventDate "2024.06.23"]
[EventType "swiss"]
[EventCountry "GEO"]
[SourceTitle "playchess.com"]
[Source "ChessBase"]
[SourceQuality "1"]
[TimeControl "5400+30"]

1. e4 {[%emt 0:00:10]} e5 {[%emt 0:00:45]} 2. Nf3 {[%emt 0:00:18]} Nc6 {[%emt 0:00:09]} 3. d4 {[%emt 0:00:15]} exd4 {[%emt 0:00:10]} 4. Nxd4 {[%emt 0:00:04]} Nf6 {[%emt 0:00:28]} 5. Nxc6 {[%emt 0:00:09]} bxc6 {[%emt 0:00:11]} 6. Qe2 {[%emt 0:00:14]} Rb8 {[%emt 0:03:07]} 7. Nc3 {[%emt 0:07:53]} Bb4 {[%emt 0:01:09]} 8. a3 {[%emt 0:12:04]} Bxc3+ {[%emt 0:01:10]} 9. bxc3 {[%emt 0:00:09]} O-O {[%emt 0:00:54]} 10. e5 {[%emt 0:09:10]} Re8 {[%emt 0:07:19]} 11. Bg5 {[%emt 0:07:37]} d6 {[%emt 0:04:14]} 12. O-O-O {[%emt 0:06:12]} d5 {[%emt 0:11:21]} 13. f4 {[%emt 0:08:50]} Qe7 {[%emt 0:14:41]} 14. Kd2 {[%emt 0:06:04]} Bg4 {[%emt 0:10:05]} 15. Qxg4 {[%emt 0:06:43]} Nxg4 {[%emt 0:01:02]} 16. Bxe7 {[%emt 0:00:55]} Rxe7 {[%emt 0:00:05]} 17. Bd3 {[%emt 0:03:35]} c5 {[%emt 0:10:09]} 18. Rb1 {[%emt 0:01:33]} Rbe8 {[%emt 0:03:39]} 19. Bf5 {[%emt 0:03:31]} Nh6 {[%emt 0:00:09]} 20. Bh3 {[%emt 0:00:33]} f6 {[%emt 0:01:53]} 21. e6 {[%emt 0:01:27]} f5 {[%emt 0:00:12]} 22. Rhe1 {[%emt 0:00:50]} c6 {[%emt 0:00:24]} 23. g3 {[%emt 0:00:38]} g6 {[%emt 0:00:16]} 24. a4 {[%emt 0:00:58]} Kg7 {[%emt 0:01:59]} 25. a5 {[%emt 0:03:09]} Kf6 {[%emt 0:02:23]} 26. a6 {[%emt 0:01:20]} Rxe6 {[%emt 0:01:25]} 27. Rxe6+ {[%emt 0:02:17]} Kxe6 {[%emt 0:24:41]} 28. Rb7 {[%emt 0:00:34]} Re7 {[%emt 0:00:00]} 29. Rb8 {[%emt 0:00:17]} Nf7 {[%emt 0:00:00]} 30. Rc8 {[%emt 0:00:23]} Nd6 {[%emt 0:00:00]} 31. Rb8 {[%emt 0:03:23]} Ne4+ {[%emt 0:00:00]} 32. Kc1 {[%emt 0:00:47]} Nxc3 {[%emt 0:00:00]} 33. Rc8 {[%emt 0:00:41]} Kd6 {[%emt 0:00:00]} 34. Ra8 {[%emt 0:01:54]} c4 {[%emt 0:00:00]} 35. Rb8 {[%emt 0:02:16]} Na4 {[%emt 0:00:00]} 36. g4 {[%emt 0:00:25]} fxg4 {[%emt 0:00:00]} 37. Bxg4 {[%emt 0:00:14]} Nc5 {[%emt 0:00:00]} 38. Rd8+ {[%emt 0:03:24]} Kc7 {[%emt 0:00:00]} 39. Rh8 {[%emt 0:00:46]} Nxa6 {[%emt 0:00:00]} 40. f5 {[%emt 0:00:06]} Rf7 {[%emt 0:00:00]} 41. fxg6 {[%emt 0:00:22]} hxg6 {[%emt 0:00:00]} 42. Rg8 {[%emt 0:00:22]} Rf6 {[%emt 0:00:00]} 43. h4 {[%emt 0:00:54]} c3 {[%emt 0:00:00]} 44. Kd1 {[%emt 0:00:39]} Nb4 {[%emt 0:00:00]} 45. Rg7+ {[%emt 0:00:12]} Kb6 {[%emt 0:00:00]} 46. Bd7 {[%emt 0:00:46]} d4 {[%emt 0:00:00]} 47. Be8 {[%emt 0:00:14]} d3 {[%emt 0:00:00]} 48. Rf7 {[%emt 0:01:53]} dxc2+ {[%emt 0:00:00]} 49. Kc1 {[%emt 0:00:04]} Re6 {[%emt 0:00:00]} 50. Rf1 {[%emt 0:00:55]} Re2 {[%emt 0:00:00]} 0-1

[Event "FIDE World Cup O10-TB 2024"]
[Site "Batumi"]
[Date "2024.07.01"]
[Round "1.5"]
[White "Ashwath Kaushik"]
[Black "Karthik, Anand T."]
[Result "0-1"]
[ECO "C02"]
[WhiteElo "2029"]
[BlackElo "2022"]
[Annotator "NA RC"]
[PlyCount "86"]
[EventDate "2024.06.23"]
[EventType "swiss"]
[EventCountry "GEO"]
[SourceTitle "playchess.com"]
[Source "ChessBase"]
[SourceQuality "1"]
[TimeControl "5400+30"]

1. e4 {[%emt 0:02:43]} e6 {[%emt 0:00:26]} 2. d4 {[%emt 0:00:25]} d5 {[%emt 0:00:08]} 3. e5 {[%emt 0:00:07]} c5 {[%emt 0:00:04]} 4. c3 {[%emt 0:00:21]} Nc6 {[%emt 0:00:05]} 5. Nf3 {[%emt 0:00:14]} Bd7 {[%emt 0:00:07]} 6. Bd3 {[%emt 0:00:27]} cxd4 {[%emt 0:00:09]} 7. cxd4 {[%emt 0:00:07]} Qb6 {[%emt 0:00:04]} 8. O-O {[%emt 0:13:20]} Nxd4 {[%emt 0:01:00]} 9. Nxd4 {[%emt 0:01:44]} Qxd4 {[%emt 0:00:07]} 10. Qe2 {[%emt 0:02:58]} Ne7 {[%emt 0:02:25]} 11. Nc3 {[%emt 0:06:16]} a6 {[%emt 0:03:23]} 12. Rd1 {[%emt 0:02:45]} Qb6 {[%emt 0:02:15]} 13. Kh1 {[%emt 0:09:52]} Nc6 {[%emt 0:04:40]} 14. f4 {[%emt 0:01:53]} Qc7 {[%emt 0:01:25]} 15. Bb1 {[%emt 0:14:54]} g6 {[%emt 0:03:51]} 16. a3 {[%emt 0:05:26]} Bg7 {[%emt 0:01:51]} 17. Ba2 {[%emt 0:02:06]} O-O {[%emt 0:01:20]} 18. Qf3 {[%emt 0:06:37]} Kh8 {[%emt 0:03:14]} 19. Be3 {[%emt 0:07:54]} Ne7 {[%emt 0:03:23]} 20. Qf2 {[%emt 0:01:13]} Bc6 {[%emt 0:01:15]} 21. Bb6 {[%emt 0:04:07]} Qc8 {[%emt 0:01:37]} 22. Bc5 {[%emt 0:01:24]} Re8 {[%emt 0:00:57]} 23. Rd3 {[%emt 0:01:53]} Nf5 {[%emt 0:01:42]} 24. Kg1 {[%emt 0:00:14]} h5 {[%emt 0:06:35]} 25. g3 {[%emt 0:04:52]} Bf8 {[%emt 0:03:35]} 26. Bxf8 {[%emt 0:00:39]} Rxf8 {[%emt 0:02:06]} 27. h3 {[%emt 0:00:14]} d4 {[%emt 0:01:06]} 28. Ne2 {[%emt 0:01:18]} Bb5 {[%emt 0:00:56]} 29. Rd2 {[%emt 0:01:06]} Bxe2 {[%emt 0:00:51]} 30. Rxe2 {[%emt 0:00:42]} Ne3 {[%emt 0:00:06]} 31. g4 {[%emt 0:00:39]} Qd8 {[%emt 0:04:26]} 32. Qg3 {[%emt 0:01:34]} hxg4 {[%emt 0:01:22]} 33. hxg4 {[%emt 0:01:00]} Kg7 {[%emt 0:00:07]} 34. Rf2 {[%emt 0:03:56]} Rh8 {[%emt 0:01:41]} 35. Rh2 {[%emt 0:02:19]} Rxh2 {[%emt 0:00:11]} 36. Kxh2 {[%emt 0:00:02]} Rc8 {[%emt 0:00:09]} 37. Bb3 {[%emt 0:01:06]} Qb6 {[%emt 0:00:08]} 38. f5 {[%emt 0:00:31]} Qxb3 {[%emt 0:01:02]} 39. f6+ {[%emt 0:00:29]} Kf8 {[%emt 0:00:08]} 40. Qh4 {[%emt 0:00:29]} Qxb2+ {[%emt 0:00:07]} 41. Kg3 {[%emt 0:00:06]} Qg2+ {[%emt 0:00:28]} 42. Kf4 {[%emt 0:00:23]} Nd5+ {[%emt 0:00:07]} 43. Kg5 {[%emt 0:00:23]} Qd2# {[%emt 0:00:06]} 0-1

[Event "FIDE World Cup O10-TB 2024"]
[Site "Batumi"]
[Date "2024.07.01"]
[Round "1.6"]
[White "Rahul Ramakrishnan"]
[Black "Mrozowski, Nikodem"]
[Result "1-0"]
[ECO "A50"]
[WhiteElo "1838"]
[BlackElo "1776"]
[Annotator "NA RC"]
[PlyCount "123"]
[EventDate "2024.06.23"]
[EventType "swiss"]
[EventCountry "GEO"]
[SourceTitle "playchess.com"]
[Source "ChessBase"]
[SourceQuality "1"]
[TimeControl "5400+30"]

1. d4 {[%emt 0:00:18]} Nf6 {[%emt 0:00:13]} 2. c4 {[%emt 0:00:27]} Nc6 {[%emt 0:00:14]} 3. Nc3 {[%emt 0:00:18]} e5 {[%emt 0:00:09]} 4. d5 {[%emt 0:00:19]} Ne7 {[%emt 0:00:49]} 5. e4 {[%emt 0:00:42]} Ng6 {[%emt 0:01:08]} 6. Nf3 {[%emt 0:02:20]} Bc5 {[%emt 0:02:28]} 7. Bd3 {[%emt 0:04:44]} d6 {[%emt 0:03:19]} 8. O-O {[%emt 0:04:50]} Bd7 {[%emt 0:06:13]} 9. Bd2 {[%emt 0:12:03]} O-O {[%emt 0:07:43]} 10. a3 {[%emt 0:01:55]} a5 {[%emt 0:00:22]} 11. Rb1 {[%emt 0:01:32]} a4 {[%emt 0:11:16]} 12. Bc2 {[%emt 0:04:47]} Qe8 {[%emt 0:01:04]} 13. Qe2 {[%emt 0:05:32]} Nh5 {[%emt 0:01:52]} 14. Be3 {[%emt 0:03:34]} Nhf4 {[%emt 0:02:01]} 15. Qd2 {[%emt 0:01:45]} Bxe3 {[%emt 0:01:37]} 16. fxe3 {[%emt 0:00:55]} Nh5 {[%emt 0:00:27]} 17. Qe2 {[%emt 0:00:44]} Nf6 {[%emt 0:03:40]} 18. Rfc1 {[%emt 0:07:15]} Qb8 {[%emt 0:03:22]} 19. b4 {[%emt 0:06:55]} axb3 {[%emt 0:00:34]} 20. Rxb3 {[%emt 0:00:04]} Bg4 {[%emt 0:02:11]} 21. Rcb1 {[%emt 0:07:06]} b6 {[%emt 0:00:15]} 22. h3 {[%emt 0:04:29]} Bxf3 {[%emt 0:00:13]} 23. Qxf3 {[%emt 0:00:02]} Nd7 {[%emt 0:03:30]} 24. a4 {[%emt 0:00:20]} Nc5 {[%emt 0:00:17]} 25. Rb5 {[%emt 0:02:10]} Qd8 {[%emt 0:03:51]} 26. Rf1 {[%emt 0:03:57]} Qg5 {[%emt 0:03:55]} 27. Kh2 {[%emt 0:02:37]} Ne7 {[%emt 0:05:35]} 28. Rbb1 {[%emt 0:01:16]} g6 {[%emt 0:01:32]} 29. g4 {[%emt 0:02:17]} Qh4 {[%emt 0:02:15]} 30. Qg3 {[%emt 0:01:58]} Qxg3+ {[%emt 0:01:05]} 31. Kxg3 {[%emt 0:00:02]} Kg7 {[%emt 0:03:47]} 32. h4 {[%emt 0:02:42]} h6 {[%emt 0:01:07]} 33. Nb5 {[%emt 0:04:32]} Rac8 {[%emt 0:01:24]} 34. Ra1 {[%emt 0:00:16]} Nb7 {[%emt 0:00:41]} 35. Rf2 {[%emt 0:00:16]} Na5 {[%emt 0:00:28]} 36. Bd3 {[%emt 0:00:32]} f6 {[%emt 0:01:26]} 37. Raf1 {[%emt 0:00:38]} Nb3 {[%emt 0:00:40]} 38. g5 {[%emt 0:01:24]} fxg5 {[%emt 0:01:07]} 39. hxg5 {[%emt 0:00:30]} Rxf2 {[%emt 0:01:51]} 40. gxh6+ {[%emt 0:00:01]} Kxh6 {[%emt 0:00:11]} 41. Rxf2 {[%emt 0:00:02]} Ra8 {[%emt 0:02:11]} 42. Bc2 {[%emt 0:00:35]} Na5 {[%emt 0:01:27]} 43. Rf7 {[%emt 0:00:12]} Nc8 {[%emt 0:02:00]} 44. Rxc7 {[%emt 0:00:18]} Kg5 {[%emt 0:00:09]} 45. Bd1 {[%emt 0:00:13]} Kf6 {[%emt 0:00:25]} 46. Bg4 {[%emt 0:00:09]} Ne7 {[%emt 0:00:25]} 47. Nxd6 {[%emt 0:00:06]} Nb3 {[%emt 0:00:15]} 48. Nb5 {[%emt 0:01:31]} Nd2 {[%emt 0:01:32]} 49. d6 {[%emt 0:00:51]} Nxe4+ {[%emt 0:00:04]} 50. Kf3 {[%emt 0:00:12]} Ng5+ {[%emt 0:00:09]} 51. Ke2 {[%emt 0:00:10]} Nf5 {[%emt 0:00:26]} 52. Rc6 {[%emt 0:03:45]} Rxa4 {[%emt 0:03:08]} 53. d7+ {[%emt 0:00:07]} Ke7 {[%emt 0:00:06]} 54. Rxg6 {[%emt 0:00:11]} Ra2+ {[%emt 0:01:31]} 55. Kd3 {[%emt 0:00:13]} e4+ {[%emt 0:00:06]} 56. Kc3 {[%emt 0:00:05]} Nxe3 {[%emt 0:01:40]} 57. Rg7+ {[%emt 0:00:10]} Nf7 {[%emt 0:00:14]} 58. Rxf7+ {[%emt 0:00:07]} Kxf7 {[%emt 0:00:03]} 59. d8=Q {[%emt 0:12:59]} Nxg4 {[%emt 0:00:10]} 60. Qd7+ {[%emt 0:00:00]} Kf6 {[%emt 0:00:06]} 61. Qxg4 {[%emt 0:00:00]} e3 {[%emt 0:01:04]} 62. Qd4+ {[%emt 0:00:00]} 1-0

[Event "FIDE World Cup O10-TB 2024"]
[Site "Batumi"]
[Date "2024.07.01"]
[Round "1.7"]
[White "Safin Safarullakhan"]
[Black "AlJamaat, Khaled"]
[Result "1/2-1/2"]
[ECO "D04"]
[WhiteElo "1879"]
[BlackElo "1644"]
[Annotator "NA RC"]
[PlyCount "113"]
[EventDate "2024.06.23"]
[EventType "swiss"]
[EventCountry "GEO"]
[SourceTitle "playchess.com"]
[Source "ChessBase"]
[SourceQuality "1"]
[TimeControl "5400+30"]

1. Nf3 {[%emt 0:00:15]} d5 {[%emt 0:00:35]} 2. d4 {[%emt 0:00:15]} Nf6 {[%emt 0:00:54]} 3. e3 {[%emt 0:00:15]} c5 {[%emt 0:00:49]} 4. b3 {[%emt 0:00:28]} Nc6 {[%emt 0:00:14]} 5. Bd3 {[%emt 0:00:25]} Bg4 {[%emt 0:00:41]} 6. Bb2 {[%emt 0:00:38]} e6 {[%emt 0:01:45]} 7. O-O {[%emt 0:00:57]} cxd4 {[%emt 0:00:27]} 8. exd4 {[%emt 0:02:16]} Bd6 {[%emt 0:00:16]} 9. c4 {[%emt 0:01:46]} dxc4 {[%emt 0:02:02]} 10. bxc4 {[%emt 0:00:24]} O-O {[%emt 0:00:19]} 11. h3 {[%emt 0:00:47]} Bh5 {[%emt 0:02:37]} 12. Nbd2 {[%emt 0:03:41]} Rc8 {[%emt 0:09:21]} 13. Ne4 {[%emt 0:12:55]} Nxe4 {[%emt 0:01:30]} 14. Bxe4 {[%emt 0:00:13]} Bg6 {[%emt 0:06:02]} 15. Bxg6 {[%emt 0:05:23]} hxg6 {[%emt 0:00:09]} 16. d5 {[%emt 0:00:16]} exd5 {[%emt 1:10:49]} 17. cxd5 {[%emt 0:00:30]} Nb4 {[%emt 0:00:00]} 18. Kh1 {[%emt 0:05:43]} Bc5 {[%emt 0:00:00]} 19. a3 {[%emt 0:13:31]} Nxd5 {[%emt 0:00:00]} 20. Rc1 {[%emt 0:00:28]} Nf6 {[%emt 0:00:00]} 21. Qa4 {[%emt 0:05:56]} Re8 {[%emt 0:00:00]} 22. Ng5 {[%emt 0:03:32]} Qd5 {[%emt 0:00:00]} 23. Bxf6 {[%emt 0:14:48]} gxf6 {[%emt 0:00:00]} 24. Nf3 {[%emt 0:00:24]} Qf5 {[%emt 0:00:00]} 25. Rc4 {[%emt 0:11:19]} b6 {[%emt 0:00:22]} 26. Qxa7 {[%emt 0:02:33]} b5 {[%emt 0:00:09]} 27. Rxc5 {[%emt 0:01:18]} Qxc5 {[%emt 0:00:09]} 28. Qd7 {[%emt 0:02:06]} Re7 {[%emt 0:01:07]} 29. Qd3 {[%emt 0:00:58]} Qc4 {[%emt 0:01:03]} 30. Qb1 {[%emt 0:00:27]} Ra7 {[%emt 0:00:16]} 31. Nd2 {[%emt 0:01:14]} Qc5 {[%emt 0:01:49]} 32. Ne4 {[%emt 0:00:49]} Qe5 {[%emt 0:00:08]} 33. f4 {[%emt 0:01:00]} Qe6 {[%emt 0:01:03]} 34. f5 {[%emt 0:00:39]} Qe5 {[%emt 0:01:39]} 35. fxg6 {[%emt 0:00:21]} Rc6 {[%emt 0:00:24]} 36. gxf7+ {[%emt 0:01:18]} Rxf7 {[%emt 0:00:40]} 37. Qd3 {[%emt 0:02:07]} Re6 {[%emt 0:00:44]} 38. Nc3 {[%emt 0:03:22]} Kf8 {[%emt 0:00:37]} 39. Nxb5 {[%emt 0:01:43]} Rg7 {[%emt 0:00:36]} 40. Qd8+ {[%emt 0:01:43]} Kf7 {[%emt 0:00:22]} 41. Nc7 {[%emt 0:00:45]} Rd6 {[%emt 0:00:28]} 42. Qh8 {[%emt 0:01:05]} Rc6 {[%emt 0:00:30]} 43. Na8 {[%emt 0:00:50]} Qe2 {[%emt 0:00:08]} 44. Rg1 {[%emt 0:00:21]} Rc1 {[%emt 0:00:14]} 45. Qxg7+ {[%emt 0:00:38]} Kxg7 {[%emt 0:00:08]} 46. Rxc1 {[%emt 0:00:03]} Qa6 {[%emt 0:00:15]} 47. Nc7 {[%emt 0:00:14]} Qxa3 {[%emt 0:00:05]} 48. Rf1 {[%emt 0:00:37]} Qd3 {[%emt 0:01:21]} 49. Re1 {[%emt 0:01:04]} Qc3 {[%emt 0:00:47]} 50. Ne8+ {[%emt 0:00:25]} Kf8 {[%emt 0:00:18]} 51. Re4 {[%emt 0:00:39]} Qc6 {[%emt 0:00:20]} 52. Re2 {[%emt 0:00:30]} Qc4 {[%emt 0:00:08]} 53. Re1 {[%emt 0:00:25]} Qc3 {[%emt 0:00:05]} 54. Re4 {[%emt 0:00:16]} Qc6 {[%emt 0:00:25]} 55. Re2 {[%emt 0:00:12]} Qc1+ {[%emt 0:00:06]} 56. Kh2 {[%emt 0:00:10]} Qf4+ {[%emt 0:00:14]} 57. Kg1 {[%emt 0:00:37]} 1/2-1/2

[Event "FIDE World Cup O10-TB 2024"]
[Site "Batumi"]
[Date "2024.07.01"]
[Round "1.8"]
[White "Modith Aaroh Mutyalapati"]
[Black "Ramesan, Raunak Amit"]
[Result "0-1"]
[ECO "C80"]
[WhiteElo "1866"]
[BlackElo "1772"]
[Annotator "NA RC"]
[PlyCount "88"]
[EventDate "2024.06.23"]
[EventType "swiss"]
[EventCountry "GEO"]
[SourceTitle "playchess.com"]
[Source "ChessBase"]
[SourceQuality "1"]
[TimeControl "5400+30"]

1. e4 {[%emt 0:00:05]} e5 {[%emt 0:00:06]} 2. Nf3 {[%emt 0:00:03]} Nc6 {[%emt 0:00:14]} 3. Bb5 {[%emt 0:00:01]} a6 {[%emt 0:00:10]} 4. Ba4 {[%emt 0:00:04]} Nf6 {[%emt 0:00:09]} 5. O-O {[%emt 0:00:04]} Nxe4 {[%emt 0:00:45]} 6. d4 {[%emt 0:02:31]} b5 {[%emt 0:00:23]} 7. Bb3 {[%emt 0:00:31]} d5 {[%emt 1:32:13]} 8. dxe5 {[%emt 0:05:54]} Be6 {[%emt 0:00:00]} 9. Nbd2 {[%emt 0:01:01]} Nc5 {[%emt 0:00:00]} 10. Re1 {[%emt 0:00:37]} Be7 {[%emt 0:00:00]} 11. h3 {[%emt 0:03:29]} O-O {[%emt 0:00:00]} 12. Qe2 {[%emt 0:00:19]} Qd7 {[%emt 0:00:00]} 13. c3 {[%emt 0:02:25]} Nxb3 {[%emt 0:00:00]} 14. Nxb3 {[%emt 0:00:05]} Nd8 {[%emt 0:00:00]} 15. Be3 {[%emt 0:07:17]} Nb7 {[%emt 0:00:00]} 16. Nfd4 {[%emt 0:03:32]} c5 {[%emt 0:00:00]} 17. Nxe6 {[%emt 0:00:03]} fxe6 {[%emt 0:00:00]} 18. f4 {[%emt 0:00:05]} c4 {[%emt 0:00:00]} 19. Nd4 {[%emt 0:00:32]} Bc5 {[%emt 0:00:00]} 20. Qg4 {[%emt 0:00:29]} Bxd4 {[%emt 0:00:00]} 21. Bxd4 {[%emt 0:00:31]} g6 {[%emt 0:00:00]} 22. Rf1 {[%emt 0:02:48]} Rf7 {[%emt 0:00:00]} 23. b3 {[%emt 0:02:26]} Na5 {[%emt 0:00:00]} 24. Bb6 {[%emt 0:00:18]} Nc6 {[%emt 0:00:00]} 25. bxc4 {[%emt 0:01:22]} bxc4 {[%emt 0:00:00]} 26. Rab1 {[%emt 0:00:40]} Rff8 {[%emt 0:00:00]} 27. Bc5 {[%emt 0:01:07]} Rfb8 {[%emt 0:00:00]} 28. Qe2 {[%emt 0:00:10]} Rb5 {[%emt 0:00:00]} 29. Bd6 {[%emt 0:00:13]} Ra7 {[%emt 0:00:00]} 30. g4 {[%emt 0:00:13]} Qg7 {[%emt 0:00:00]} 31. a4 {[%emt 0:00:12]} Rxb1 {[%emt 0:00:00]} 32. Rxb1 {[%emt 0:00:12]} Rb7 {[%emt 0:00:00]} 33. Rxb7 {[%emt 0:04:21]} Qxb7 {[%emt 0:00:00]} 34. Kh2 {[%emt 0:00:09]} Qb1 {[%emt 0:00:00]} 35. Qe3 {[%emt 0:04:37]} Qd3 {[%emt 0:00:00]} 36. Qf2 {[%emt 0:04:27]} Qxc3 {[%emt 0:00:00]} 37. f5 {[%emt 0:01:29]} Qd4 {[%emt 0:00:00]} 38. Qf1 {[%emt 0:01:39]} Qd2+ {[%emt 0:00:00]} 39. Kh1 {[%emt 0:00:12]} Qd3 {[%emt 0:00:00]} 40. Qf4 {[%emt 0:03:52]} Qxh3+ {[%emt 0:00:47]} 41. Kg1 {[%emt 0:00:08]} exf5 {[%emt 0:00:09]} 42. gxf5 {[%emt 0:00:43]} Qxf5 {[%emt 0:00:08]} 43. Qh4 {[%emt 0:00:04]} c3 {[%emt 0:01:23]} 44. Qg3 {[%emt 0:00:43]} c2 {[%emt 0:00:14]} 0-1